[Event "*** Titled Tuesday 3|2 Blitz"]
[Site "Chess.com"]
[Date "2016.02.02"]
[Round "4"]
[White "LuckyTiger"]
[Black "ChadaevNikolay"]
[Result "1-0"]
[WhiteElo "2508"]
[BlackElo "2516"]
[TimeControl "180+2"]
[EndTime "11:54:11 PST"]
[Termination "LuckyTiger won by resignation"]

1. e4 {[%clk 0:03:01.9]} 1... c5 {[%clk 0:02:59.9]} 2. c3 {[%clk 0:02:56]} 2...
Nf6 {[%clk 0:03:00.1]} 3. e5 {[%clk 0:02:57.5]} 3... Nd5 {[%clk 0:03:00]} 4. Nf3
{[%clk 0:02:58.9]} 4... Nc6 {[%clk 0:03:00.4]} 5. Bc4 {[%clk 0:02:58.7]} 5...
Nb6 {[%clk 0:03:00.3]} 6. Bb3 {[%clk 0:03:00.1]} 6... d6 {[%clk 0:02:51.5]} 7.
exd6 {[%clk 0:02:55.5]} 7... Qxd6 {[%clk 0:02:51.9]} 8. O-O {[%clk 0:02:55.4]}
8... Bf5 {[%clk 0:02:46.9]} 9. d4 {[%clk 0:02:54.6]} 9... cxd4 {[%clk
0:02:47.4]} 10. Nxd4 {[%clk 0:02:56.5]} 10... Nxd4 {[%clk 0:02:47.3]} 11. cxd4
{[%clk 0:02:58.4]} 11... e6 {[%clk 0:02:46.2]} 12. Qf3 {[%clk 0:02:59.3]} 12...
Qc6 {[%clk 0:02:25.6]} 13. Qxc6+ {[%clk 0:02:19.2]} 13... bxc6 {[%clk
0:02:25.9]} 14. Be3 {[%clk 0:02:16.6]} 14... Bb4 {[%clk 0:02:21.7]} 15. a3
{[%clk 0:02:15.6]} 15... Bd6 {[%clk 0:02:17.6]} 16. Nd2 {[%clk 0:02:14.3]} 16...
Kd7 {[%clk 0:02:16.8]} 17. Rfc1 {[%clk 0:02:13.8]} 17... Rab8 {[%clk 0:02:15]}
18. Bd1 {[%clk 0:02:01.2]} 18... Bd3 {[%clk 0:02:05.2]} 19. b4 {[%clk
0:01:58.6]} 19... Bb5 {[%clk 0:01:46.6]} 20. Ne4 {[%clk 0:01:20.6]} 20... Ra8
{[%clk 0:01:40.7]} 21. a4 {[%clk 0:00:57.2]} 21... Bd3 {[%clk 0:01:38.3]} 22.
Nc5+ {[%clk 0:00:56.3]} 22... Bxc5 {[%clk 0:01:38.3]} 23. dxc5 {[%clk
0:00:58.2]} 23... Nd5 {[%clk 0:01:38.8]} 24. b5 {[%clk 0:00:58.5]} 24... cxb5
{[%clk 0:01:18.8]} 25. c6+ {[%clk 0:01:00.4]} 25... Kc7 {[%clk 0:01:19.4]} 26.
Bd2 {[%clk 0:01:00.6]} 26... Rhc8 {[%clk 0:01:06.7]} 27. Bf3 {[%clk 0:01:00.7]}
27... a5 {[%clk 0:00:35.5]} 28. Bxd5 {[%clk 0:00:57.3]} 28... exd5 {[%clk
0:00:35.1]} 29. Bf4+ {[%clk 0:00:52.5]} 29... Kb6 {[%clk 0:00:35.5]} 30. Be3+
{[%clk 0:00:47.2]} 30... Kc7 {[%clk 0:00:33.1]} 31. axb5 {[%clk 0:00:47.3]}
31... Bxb5 {[%clk 0:00:32.9]} 32. Bf4+ {[%clk 0:00:46.8]} 32... Kb6 {[%clk
0:00:33.9]} 33. c7 {[%clk 0:00:48]} 33... a4 {[%clk 0:00:33.7]} 34. Be3+ {[%clk
0:00:44.7]} 34... Ka6 {[%clk 0:00:34.5]} 35. Rc5 {[%clk 0:00:44.3]} 35... f6
{[%clk 0:00:29.3]} 36. f3 {[%clk 0:00:45]} 36... Ra7 {[%clk 0:00:18.4]} 37. Rxb5
{[%clk 0:00:32.4]} 37... Kxb5 {[%clk 0:00:16.3]} 38. Bxa7 {[%clk 0:00:30.1]}
38... Rxc7 {[%clk 0:00:18.2]} 39. Rb1+ {[%clk 0:00:31.2]} 39... Ka6 {[%clk
0:00:18.4]} 40. Be3 {[%clk 0:00:29.8]} 40... Rc3 {[%clk 0:00:19]} 41. Kf2 {[%clk
0:00:27.1]} 41... a3 {[%clk 0:00:19]} 42. Bd4 {[%clk 0:00:19.9]} 42... Rc2+
{[%clk 0:00:19.6]} 43. Ke3 {[%clk 0:00:20.3]} 43... a2 {[%clk 0:00:21.1]} 44.
Rb8 {[%clk 0:00:18.8]} 44... Rxg2 {[%clk 0:00:20.9]} 45. h4 {[%clk 0:00:19.4]}
45... Ka5 {[%clk 0:00:22]} 46. Kd3 {[%clk 0:00:14.9]} 46... Ka4 {[%clk
0:00:22.5]} 47. Bc3 {[%clk 0:00:13]} 47... Rf2 {[%clk 0:00:20.3]} 48. Ra8+
{[%clk 0:00:06.6]} 48... Kb5 {[%clk 0:00:20.8]} 49. Ke3 {[%clk 0:00:06.7]} 49...
Rh2 {[%clk 0:00:20.8]} 50. h5 {[%clk 0:00:07.3]} 50... Kc4 {[%clk 0:00:21.6]}
51. Bd4 {[%clk 0:00:08]} 51... Kb3 {[%clk 0:00:22.3]} 52. Rb8+ {[%clk
0:00:09.1]} 52... Kc4 {[%clk 0:00:23.4]} 53. Rc8+ {[%clk 0:00:09.6]} 53... Kb4
{[%clk 0:00:24.5]} 54. Rb8+ {[%clk 0:00:10.7]} 54... Ka5 {[%clk 0:00:25.7]} 55.
Ra8+ {[%clk 0:00:11.6]} 55... Kb5 {[%clk 0:00:26.8]} 56. Kd3 {[%clk 0:00:11.1]}
56... h6 {[%clk 0:00:26.4]} 57. Ra7 {[%clk 0:00:11.3]} 57... Rg2 {[%clk
0:00:27.1]} 58. Ra8 {[%clk 0:00:10.6]} 58... Kc6 {[%clk 0:00:27.9]} 59. Bc3
{[%clk 0:00:10]} 59... Kd6 {[%clk 0:00:28.4]} 60. Bd2 {[%clk 0:00:10.8]} 60...
Rh2 {[%clk 0:00:25.6]} 61. Bf4+ {[%clk 0:00:11.3]} 1-0

[Event "*** Titled Tuesday 3|2 Blitz"]
[Site "Chess.com"]
[Date "2016.02.02"]
[Round "4"]
[White "Alexander_Donchenko"]
[Black "E-Shaposhnikov"]
[Result "1/2-1/2"]
[WhiteElo "2528"]
[BlackElo "2509"]
[TimeControl "180+2"]
[EndTime "11:54:12 PST"]
[Termination "Game drawn by repetition"]

1. d4 {[%clk 0:03:01.9]} 1... Nf6 {[%clk 0:02:59.7]} 2. c4 {[%clk 0:03:02.9]}
2... e6 {[%clk 0:03:00.8]} 3. g3 {[%clk 0:03:04.1]} 3... d5 {[%clk 0:03:00.6]}
4. Bg2 {[%clk 0:03:04.7]} 4... Bb4+ {[%clk 0:03:02]} 5. Nd2 {[%clk 0:03:05.8]}
5... O-O {[%clk 0:02:59.6]} 6. Nf3 {[%clk 0:03:06.9]} 6... dxc4 {[%clk
0:02:58.7]} 7. Qc2 {[%clk 0:03:05.6]} 7... Nc6 {[%clk 0:02:36.4]} 8. Qxc4 {[%clk
0:03:05.3]} 8... Bd6 {[%clk 0:02:36.3]} 9. O-O {[%clk 0:02:53.8]} 9... e5 {[%clk
0:02:34.5]} 10. dxe5 {[%clk 0:02:53.2]} 10... Nxe5 {[%clk 0:02:35.2]} 11. Nxe5
{[%clk 0:02:54]} 11... Bxe5 {[%clk 0:02:36.3]} 12. Nf3 {[%clk 0:02:54.1]} 12...
Bd6 {[%clk 0:02:36.4]} 13. Be3 {[%clk 0:02:50.9]} 13... Be6 {[%clk 0:02:30.5]}
14. Qh4 {[%clk 0:02:45.1]} 14... h6 {[%clk 0:02:18.7]} 15. Rfd1 {[%clk
0:02:42.9]} 15... Ng4 {[%clk 0:02:16.5]} 16. Qxd8 {[%clk 0:02:30]} 16... Rfxd8
{[%clk 0:02:13.6]} 17. Bd4 {[%clk 0:02:28.2]} 17... c6 {[%clk 0:02:03.2]} 18.
Bc3 {[%clk 0:02:00]} 18... Bc5 {[%clk 0:01:57.7]} 19. Nd4 {[%clk 0:01:55.7]}
19... Bd5 {[%clk 0:01:42.9]} 20. e4 {[%clk 0:01:52.8]} 20... Bc4 {[%clk
0:01:32.9]} 21. b3 {[%clk 0:01:51.4]} 21... Ba6 {[%clk 0:01:33.6]} 22. h3 {[%clk
0:01:51.3]} 22... Ne5 {[%clk 0:01:31.9]} 23. Nf5 {[%clk 0:01:05]} 23... f6
{[%clk 0:01:29.9]} 24. Bd4 {[%clk 0:00:42.3]} 24... Be2 {[%clk 0:01:26.5]} 25.
Re1 {[%clk 0:00:19.8]} 25... Rxd4 {[%clk 0:01:23.3]} 26. Rxe2 {[%clk 0:00:20.4]}
26... Rd3 {[%clk 0:01:24.3]} 27. Rc1 {[%clk 0:00:19.5]} 27... Bb6 {[%clk
0:01:17.9]} 28. Kf1 {[%clk 0:00:15.9]} 28... Rad8 {[%clk 0:01:16]} 29. f4 {[%clk
0:00:17.1]} 29... Nf3 {[%clk 0:00:50.4]} 30. Bxf3 {[%clk 0:00:15.3]} 30... Rxf3+
{[%clk 0:00:52]} 31. Kg2 {[%clk 0:00:17.1]} 31... Rdd3 {[%clk 0:00:52.6]} 32.
Rf1 {[%clk 0:00:14.3]} 32... Rxf1 {[%clk 0:00:48.3]} 33. Kxf1 {[%clk 0:00:16.2]}
33... g6 {[%clk 0:00:43.8]} 34. Nxh6+ {[%clk 0:00:14.9]} 34... Kg7 {[%clk
0:00:44.9]} 35. Ng4 {[%clk 0:00:15.1]} 35... Rxg3 {[%clk 0:00:45.4]} 36. Rd2
{[%clk 0:00:12.1]} 36... Rf3+ {[%clk 0:00:39.2]} 37. Kg2 {[%clk 0:00:12]} 37...
Rxf4 {[%clk 0:00:40.3]} 38. Rd7+ {[%clk 0:00:13.5]} 38... Kf8 {[%clk 0:00:40.8]}
39. Rxb7 {[%clk 0:00:14.5]} 39... Bd4 {[%clk 0:00:33.6]} 40. Rd7 {[%clk
0:00:14.5]} 40... Rxe4 {[%clk 0:00:34.1]} 41. Rd6 {[%clk 0:00:15.7]} 41... f5
{[%clk 0:00:31.9]} 42. Nf2 {[%clk 0:00:09.9]} 42... Bxf2 {[%clk 0:00:21.4]} 43.
Kxf2 {[%clk 0:00:11.8]} 43... Kg7 {[%clk 0:00:15.4]} 44. Rxc6 {[%clk 0:00:12.2]}
44... Kh6 {[%clk 0:00:13.2]} 45. Rc7 {[%clk 0:00:11.9]} 45... a5 {[%clk
0:00:14]} 46. Ra7 {[%clk 0:00:10.8]} 46... Re5 {[%clk 0:00:14.5]} 47. Kf3 {[%clk
0:00:11.8]} 47... Kg5 {[%clk 0:00:15]} 48. Ra6 {[%clk 0:00:12.5]} 48... Kh5
{[%clk 0:00:15.7]} 49. Ra8 {[%clk 0:00:13]} 49... Kg5 {[%clk 0:00:15.7]} 50. Ra6
{[%clk 0:00:14.2]} 50... Rc5 {[%clk 0:00:16.4]} 51. h4+ {[%clk 0:00:12.1]} 51...
Kh5 {[%clk 0:00:16.4]} 52. Kf4 {[%clk 0:00:12.5]} 52... Rd5 {[%clk 0:00:13.7]}
53. Ke3 {[%clk 0:00:12.2]} 53... Re5+ {[%clk 0:00:13.7]} 54. Kf3 {[%clk
0:00:12.7]} 54... Rc5 {[%clk 0:00:13.9]} 55. Kf4 {[%clk 0:00:13.5]} 55... Rd5
{[%clk 0:00:14.8]} 56. Ke3 {[%clk 0:00:11.1]} 56... Re5+ {[%clk 0:00:14.8]} 57.
Kf3 {[%clk 0:00:12.5]} 57... Rb5 {[%clk 0:00:13.7]} 58. Ke3 {[%clk 0:00:09.2]}
58... Rc5 {[%clk 0:00:14.3]} 59. Kf4 {[%clk 0:00:10.1]} 1/2-1/2

[Event "*** Titled Tuesday 3|2 Blitz"]
[Site "Chess.com"]
[Date "2016.02.02"]
[Round "4"]
[White "Matibar"]
[Black "BartoszSocko"]
[Result "1/2-1/2"]
[WhiteElo "2507"]
[BlackElo "2710"]
[TimeControl "180+2"]
[EndTime "11:54:17 PST"]
[Termination "Game drawn by agreement"]

1. e4 {[%clk 0:03:01.4]} 1... e6 {[%clk 0:02:55.4]} 2. d3 {[%clk 0:03:01.9]}
2... d5 {[%clk 0:02:51.4]} 3. Qe2 {[%clk 0:03:02.1]} 3... dxe4 {[%clk 0:02:52]}
4. dxe4 {[%clk 0:03:02.9]} 4... e5 {[%clk 0:02:53.5]} 5. Nf3 {[%clk 0:03:03.7]}
5... Bd6 {[%clk 0:02:54.7]} 6. g3 {[%clk 0:03:01.4]} 6... Ne7 {[%clk 0:02:53]}
7. Nbd2 {[%clk 0:02:57.6]} 7... O-O {[%clk 0:02:53]} 8. Nc4 {[%clk 0:02:57.8]}
8... Nbc6 {[%clk 0:02:47.2]} 9. c3 {[%clk 0:02:56.6]} 9... Be6 {[%clk
0:02:31.4]} 10. Ng5 {[%clk 0:02:52.3]} 10... Bd7 {[%clk 0:02:22.9]} 11. Bg2
{[%clk 0:02:42]} 11... h6 {[%clk 0:02:20.5]} 12. Nxd6 {[%clk 0:02:42.5]} 12...
cxd6 {[%clk 0:02:19.2]} 13. Nf3 {[%clk 0:02:44.1]} 13... Bg4 {[%clk 0:02:12]}
14. O-O {[%clk 0:02:36]} 14... Qd7 {[%clk 0:02:13.3]} 15. Be3 {[%clk 0:02:34.6]}
15... Kh8 {[%clk 0:02:06.6]} 16. Rad1 {[%clk 0:02:20.3]} 16... f5 {[%clk
0:02:06.6]} 17. h3 {[%clk 0:02:19.4]} 17... Bh5 {[%clk 0:01:54]} 18. Nxe5 {[%clk
0:02:02.6]} 18... Bxe2 {[%clk 0:01:46.6]} 19. Nxd7 {[%clk 0:02:03.3]} 19... Rfd8
{[%clk 0:01:48.2]} 20. Rxd6 {[%clk 0:01:53.7]} 20... Bxf1 {[%clk 0:01:48.3]} 21.
Kxf1 {[%clk 0:01:52.7]} 21... Nb8 {[%clk 0:01:17.8]} 22. Ne5 {[%clk 0:01:53.4]}
22... Rxd6 {[%clk 0:01:19.7]} 23. Nf7+ {[%clk 0:01:54.4]} 23... Kg8 {[%clk
0:01:21.6]} 24. Nxd6 {[%clk 0:01:56.3]} 24... Nbc6 {[%clk 0:01:15.1]} 25. exf5
{[%clk 0:01:52.8]} 25... Rd8 {[%clk 0:01:15.8]} 26. Bf4 {[%clk 0:01:53.5]} 26...
Rd7 {[%clk 0:01:10.2]} 27. g4 {[%clk 0:01:51.3]} 27... b6 {[%clk 0:01:08.1]} 28.
Ke2 {[%clk 0:01:46.3]} 28... Nd8 {[%clk 0:01:09]} 29. Nc4 {[%clk 0:01:31.4]}
29... Nf7 {[%clk 0:01:09]} 30. Ne3 {[%clk 0:01:28.6]} 30... Nd6 {[%clk
0:01:01.6]} 31. c4 {[%clk 0:01:22.3]} 31... Ne8 {[%clk 0:00:54]} 32. Bd5+ {[%clk
0:01:22]} 32... Nxd5 {[%clk 0:00:49.9]} 33. Nxd5 {[%clk 0:01:21.6]} 33... b5
{[%clk 0:00:45]} 34. Kd3 {[%clk 0:01:13.3]} 34... Nf6 {[%clk 0:00:37.9]} 35. b3
{[%clk 0:00:53.1]} 35... bxc4+ {[%clk 0:00:39.2]} 36. bxc4 {[%clk 0:00:53.9]}
36... Nxd5 {[%clk 0:00:41.1]} 37. cxd5 {[%clk 0:00:55.8]} 37... Rxd5+ {[%clk
0:00:43]} 38. Kc4 {[%clk 0:00:54.2]} 38... Rd1 {[%clk 0:00:42.5]} 39. Be3 {[%clk
0:00:54.3]} 39... a6 {[%clk 0:00:39.9]} 40. a4 {[%clk 0:00:45]} 40... Rh1 {[%clk
0:00:40.2]} 41. f6 {[%clk 0:00:36.9]} 41... g5 {[%clk 0:00:35.7]} 42. Kc5 {[%clk
0:00:35]} 42... Rxh3 {[%clk 0:00:35.8]} 43. Kb6 {[%clk 0:00:36]} 43... Rh4
{[%clk 0:00:25]} 44. Kxa6 {[%clk 0:00:31.2]} 44... Rxg4 {[%clk 0:00:26.3]} 45.
Kb5 {[%clk 0:00:31.6]} 45... Rg1 {[%clk 0:00:26]} 46. Bd4 {[%clk 0:00:27.4]}
46... Rd1 {[%clk 0:00:21.4]} 47. Kc5 {[%clk 0:00:27.4]} 47... h5 {[%clk
0:00:22.3]} 48. a5 {[%clk 0:00:28.2]} 48... Rd2 {[%clk 0:00:13.3]} 49. a6 {[%clk
0:00:18.8]} 49... Ra2 {[%clk 0:00:14.4]} 50. Kb6 {[%clk 0:00:19.1]} 50... h4
{[%clk 0:00:15.2]} 51. a7 {[%clk 0:00:16.7]} 51... g4 {[%clk 0:00:08.8]} 52. Be5
{[%clk 0:00:15.6]} 52... Kf7 {[%clk 0:00:07.9]} 53. Kb7 {[%clk 0:00:16.6]} 53...
h3 {[%clk 0:00:04]} 54. a8=Q {[%clk 0:00:15.2]} 54... Rxa8 {[%clk 0:00:05.9]}
55. Kxa8 {[%clk 0:00:17.1]} 55... Ke6 {[%clk 0:00:07.6]} 56. Kb8 {[%clk
0:00:16.3]} 56... Kxe5 {[%clk 0:00:08.9]} 57. f7 {[%clk 0:00:17.3]} 57... h2
{[%clk 0:00:10.8]} 58. f8=Q {[%clk 0:00:18.6]} 58... h1=Q {[%clk 0:00:12.7]} 59.
Qe7+ {[%clk 0:00:17.1]} 59... Kf5 {[%clk 0:00:11]} 60. Qf7+ {[%clk 0:00:17.6]}
60... Kg5 {[%clk 0:00:12]} 61. Qg7+ {[%clk 0:00:18]} 61... Kf5 {[%clk
0:00:13.3]} 62. Qf7+ {[%clk 0:00:19.3]} 62... Kg5 {[%clk 0:00:14.6]} 63. Qg7+
{[%clk 0:00:20.4]} 1/2-1/2

[Event "*** Titled Tuesday 3|2 Blitz"]
[Site "Chess.com"]
[Date "2016.02.02"]
[Round "4"]
[White "Zazuliak"]
[Black "DanielRensch"]
[Result "1/2-1/2"]
[WhiteElo "2306"]
[BlackElo "2347"]
[TimeControl "180+2"]
[EndTime "11:55:53 PST"]
[Termination "Game drawn by repetition"]

1. d4 {[%clk 0:03:00.1]} 1... Nf6 {[%clk 0:02:58.2]} 2. c4 {[%clk 0:03:00.9]}
2... e6 {[%clk 0:02:58]} 3. Nc3 {[%clk 0:03:01.6]} 3... Bb4 {[%clk 0:02:56.6]}
4. Qc2 {[%clk 0:03:02.3]} 4... O-O {[%clk 0:02:55.6]} 5. a3 {[%clk 0:03:02.7]}
5... Bxc3+ {[%clk 0:02:56]} 6. Qxc3 {[%clk 0:03:03.8]} 6... b5 {[%clk
0:02:56.8]} 7. cxb5 {[%clk 0:02:59.2]} 7... c6 {[%clk 0:02:56.4]} 8. Bg5 {[%clk
0:02:55.1]} 8... cxb5 {[%clk 0:02:56.3]} 9. e3 {[%clk 0:02:56.1]} 9... Bb7
{[%clk 0:02:57]} 10. Nf3 {[%clk 0:02:56.8]} 10... a6 {[%clk 0:02:55.6]} 11. Bd3
{[%clk 0:02:57.2]} 11... d6 {[%clk 0:02:55]} 12. O-O {[%clk 0:02:56.7]} 12...
Nbd7 {[%clk 0:02:39.8]} 13. Rfc1 {[%clk 0:02:56.5]} 13... Rc8 {[%clk 0:02:32.8]}
14. Qb4 {[%clk 0:02:50]} 14... Bxf3 {[%clk 0:02:32.6]} 15. gxf3 {[%clk
0:02:49.9]} 15... Qb6 {[%clk 0:02:24]} 16. Qd2 {[%clk 0:02:23.9]} 16... h6
{[%clk 0:02:21.8]} 17. Bh4 {[%clk 0:02:24]} 17... e5 {[%clk 0:02:18.1]} 18. Bf5
{[%clk 0:02:15.2]} 18... Rxc1+ {[%clk 0:02:18.2]} 19. Rxc1 {[%clk 0:02:15.3]}
19... exd4 {[%clk 0:02:19.3]} 20. exd4 {[%clk 0:02:15.6]} 20... Qb7 {[%clk
0:02:13.7]} 21. Qf4 {[%clk 0:02:04.3]} 21... Qd5 {[%clk 0:00:25.7]} 22. Bxd7
{[%clk 0:01:47.4]} 22... Nxd7 {[%clk 0:00:25.2]} 23. Bg3 {[%clk 0:01:48.3]}
23... Nf6 {[%clk 0:00:19.6]} 24. Qxd6 {[%clk 0:01:48.6]} 24... Qxf3 {[%clk
0:00:20.2]} 25. Qf4 {[%clk 0:01:41.7]} 25... Qd5 {[%clk 0:00:20.6]} 26. Qe5
{[%clk 0:01:39.9]} 26... Qf3 {[%clk 0:00:20.7]} 27. Qe3 {[%clk 0:01:38.9]} 27...
Qd5 {[%clk 0:00:20.9]} 28. Rc5 {[%clk 0:01:38.9]} 28... Qd7 {[%clk 0:00:21]} 29.
Rc7 {[%clk 0:01:34.5]} 29... Qh3 {[%clk 0:00:20.8]} 30. Be5 {[%clk 0:01:30.2]}
30... Qg4+ {[%clk 0:00:18.5]} 31. Qg3 {[%clk 0:01:26.4]} 31... Qd1+ {[%clk
0:00:19.2]} 32. Kg2 {[%clk 0:01:27.3]} 32... Nh5 {[%clk 0:00:20.8]} 33. Qf3
{[%clk 0:01:27.2]} 33... Qxf3+ {[%clk 0:00:20.5]} 34. Kxf3 {[%clk 0:01:27.8]}
34... f6 {[%clk 0:00:22.4]} 35. Bd6 {[%clk 0:01:28]} 35... Rd8 {[%clk
0:00:24.3]} 36. Bc5 {[%clk 0:01:27.7]} 36... f5 {[%clk 0:00:24.4]} 37. Rc6
{[%clk 0:01:26.7]} 37... g5 {[%clk 0:00:23.7]} 38. Rxh6 {[%clk 0:01:24.3]} 38...
g4+ {[%clk 0:00:24.8]} 39. Ke3 {[%clk 0:01:25]} 39... Re8+ {[%clk 0:00:25]} 40.
Kd2 {[%clk 0:01:24.3]} 40... Nf4 {[%clk 0:00:26.6]} 41. Kc3 {[%clk 0:01:18.7]}
41... Re2 {[%clk 0:00:27.2]} 42. d5 {[%clk 0:01:12.9]} 42... Nxd5+ {[%clk
0:00:27.4]} 43. Kd4 {[%clk 0:01:12.4]} 43... Nf4 {[%clk 0:00:26.2]} 44. Kc3
{[%clk 0:01:07.2]} 44... Kf7 {[%clk 0:00:25.8]} 45. Rxa6 {[%clk 0:01:07.2]}
45... Ne6 {[%clk 0:00:25.8]} 46. Ba7 {[%clk 0:01:03.3]} 46... f4 {[%clk
0:00:26.7]} 47. Rb6 {[%clk 0:01:00.9]} 47... Re5 {[%clk 0:00:27]} 48. Rb7+
{[%clk 0:00:59.4]} 48... Kg6 {[%clk 0:00:27.8]} 49. Kb4 {[%clk 0:00:53.1]} 49...
Rh5 {[%clk 0:00:26.9]} 50. Rb6 {[%clk 0:00:50]} 50... Kf6 {[%clk 0:00:27.2]} 51.
Rxb5 {[%clk 0:00:50.4]} 51... Rxh2 {[%clk 0:00:28.4]} 52. a4 {[%clk 0:00:51.4]}
52... g3 {[%clk 0:00:29.3]} 53. fxg3 {[%clk 0:00:51.7]} 53... fxg3 {[%clk
0:00:31.2]} 54. a5 {[%clk 0:00:52.8]} 54... Rh4+ {[%clk 0:00:32]} 55. Ka3 {[%clk
0:00:51.4]} 55... g2 {[%clk 0:00:32.6]} 56. Rb3 {[%clk 0:00:39.6]} 56... Rg4
{[%clk 0:00:32.5]} 57. a6 {[%clk 0:00:37.5]} 57... Nc7 {[%clk 0:00:29.6]} 58.
Bd4+ {[%clk 0:00:35.6]} 58... Rxd4 {[%clk 0:00:29.4]} 59. Rg3 {[%clk 0:00:34]}
59... Nxa6 {[%clk 0:00:17.7]} 60. Rxg2 {[%clk 0:00:34.4]} 60... Nc5 {[%clk
0:00:18.6]} 61. b4 {[%clk 0:00:28]} 61... Rd3+ {[%clk 0:00:19.2]} 62. Ka2 {[%clk
0:00:29]} 62... Na4 {[%clk 0:00:19.6]} 63. Rc2 {[%clk 0:00:27.4]} 63... Ke5
{[%clk 0:00:19.5]} 64. b5 {[%clk 0:00:26]} 64... Nc3+ {[%clk 0:00:17.4]} 65. Kb3
{[%clk 0:00:25.7]} 65... Nd5+ {[%clk 0:00:18.4]} 66. Kc4 {[%clk 0:00:23.6]}
66... Rd1 {[%clk 0:00:17]} 67. Kc5 {[%clk 0:00:20.9]} 67... Ke6 {[%clk
0:00:13.6]} 68. b6 {[%clk 0:00:18.7]} 68... Rb1 {[%clk 0:00:04.5]} 69. Re2+
{[%clk 0:00:18.1]} 69... Kd7 {[%clk 0:00:05.6]} 70. Rd2 {[%clk 0:00:15.3]} 70...
Ke6 {[%clk 0:00:02.7]} 71. Re2+ {[%clk 0:00:12.8]} 71... Kd7 {[%clk 0:00:03]}
72. Rd2 {[%clk 0:00:13.3]} 72... Ke6 {[%clk 0:00:04.3]} 73. Re2+ {[%clk
0:00:13]} 73... Kd7 {[%clk 0:00:04.9]} 1/2-1/2